{"text_format":"1","workbook":"xlsx","n_sheets":13,"sheets":["Publish IS (R)","Publish Com IS (R)","Publish BS (R)","Publish CIE (R)","Publish - Cash flow (R)","Publish - Notes to result ","Segment Report (R)","Publish IS (US$)","Publish Com IS (US$)","Publish BS (US$)","Publish CIE (US$)","Publish - Cash flow (US$)","Segment Report (US$)"],"not_rendered":{"charts":0,"images":0,"macros":1,"external_links":2,"defined_names":487,"comments":0,"pivot_tables":0},"unopened":[],"bounds":{"document_bytes":16777216,"sheet_cells":100000,"rows_first":2000,"rows_last":500,"rows_between":2000,"halvings":0,"cell_chars":16384,"cell_head_chars":4096},"cells_cut":0,"cells_raw":0,"read":"whole","date_system":"1900"}

{"sheet":"Publish IS (R)","index":0,"n_rows":82,"n_cols":13,"rows_kept":82,"cut":false,"hidden":false,"merged":[[1,15,1,24],[0,0,0,12],[2,8,2,9],[81,0,81,12],[2,3,2,5],[32,0,33,0]]}
["CONDENSED CONSOLIDATED INCOME STATEMENTS (Rand)"]
[]
[null,null,null,"Quarter ended",null,null,null,null,"Six months ended",null,null,null,"Year ended"]
[null,null,null,"31 December","30 September","31 December",null,null,"31 December","31 December",null,null,"30 June"]
[null,null,null,2011,2011,2010,null,null,"2011",2010,null,null,"2011"]
["Figures in million",null,"Note","(Unaudited)","(Unaudited)","(Unaudited)",null,null," "," ",null,null,"(Audited)"]
[]
[]
["Continuing operations"]
[]
["Revenue",null,null,4820,3929,2990,null,null,8749,6073,null,null,12445]
["Cost of sales",null,2,-3337,-3192,-2506,null,null,-6529,-5501,null,null,-11615]
[]
[]
["Production costs",null,null,-2743,-2623,-2123,null,null,-5366,-4554,null,null,-9170]
["Royalty expense",null,null,0,0,0,0,0,0,0,0,0,0]
["Amortisation and depreciation",null,null,-528,-475,-442,null,null,-1003,-868,null,null,-1776]
["Impairment of assets",null,null,0,0,0,null,null,0,0,null,null,-264]
["Employment termination and restructuring costs",null,null,-17,-34,-54,null,null,-51,-132,null,null,-158]
["Other items",null,null,-49,-60,113,null,null,-109,53,null,null,-247]
[]
[]
["Gross profit",null,null,1483,737,484,null,null,2220,572,null,null,830]
["Corporate, administration and other expenditure",null,null,-90,-84,-96,null,null,-174,-190,null,null,-354]
["Social investment expenditure",null,null,-14,-15,-23,null,null,-29,-39,null,null,-84]
["Exploration expenditure",null,null,-99,-97,-76,null,null,-196,-175,null,null,-353]
["Profit on sale of property, plant and equipment",null,null,4,26,1,null,null,30,17,null,null,29]
["Other income/(expenses) - net",null,null,24,18,6,null,null,42,-48,null,null,-24]
[]
[]
["Operating profit",null,null,1308,585,296,null,null,1893,137,null,null,44]
["Loss from associates",null,null,0,0,-19,null,null,0,-27,null,null,-51]
["Reversal of impairment/(impairment) of investment in associate"]
[null,null,3,2,48,0,null,null,50,0,null,null,-142]
["Net gain/(loss) on financial instruments",null,null,67,-26,78,null,null,41,389,null,null,141]
["Gain on farm-in option",null,null,0,0,0,null,null,0,0,null,null,273]
["Investment income",null,null,22,16,38,null,null,38,52,null,null,140]
["Finance cost",null,null,-83,-73,-69,null,null,-156,-128,null,null,-288]
[]
[]
["Profit before taxation",null,null,1316,550,324,null,null,1866,423,null,null,117]
["Taxation",null,null,-270,-72,-28,null,null,-342,-22,null,null,480]
[]
[]
["Normal taxation",null,null,-58,-40,0,null,null,-98,-9,null,null,-12]
["Deferred taxation",null,4,-212,-32,-28,null,null,-244,-13,null,null,492]
[]
[]
["Net profit from continuing operations",null,null,1046,478,296,null,null,1524,401,null,null,597]
[]
[]
["Discontinued operations"]
[]
["Profit from discontinued operations",null,null,0,0,23,null,null,0,20,null,null,20]
[]
[]
["Net profit for the period",null,null,1046,478,319,null,null,1524,421,null,null,617]
[]
[]
["Attributable to:"]
["Owners of the parent",null,null,1046,478,319,null,null,1524,421,null,null,617]
["Non-controlling interest",null,null,0,0,0,null,null,0,0,null,null,0]
[]
[]
["Earnings per ordinary share (cents)",null,5]
[]
["Earnings from continuing operations",null,null,243,111,69,null,null,354,93,null,null,139]
["Earnings from discontinued operations",null,null,0,0,5,null,null,0,5,null,null,5]
[]
[]
["Total earnings per ordinary share (cents)",null,null,243,111,74,null,null,354,98,null,null,144]
[]
[]
["Diluted earnings per ordinary share (cents)",null,5]
[]
["Earnings from continuing operations",null,null,242,111,69,null,null,353,93,null,null,139]
["Earnings from discontinued operations",null,null,0,0,5,null,null,0,5,null,null,5]
[]
[]
["Total diluted earnings per ordinary share (cents)",null,null,242,111,74,null,null,353,98,null,null,144]
[]
["The accompanying notes are an integral part of these condensed consolidated financial statements."]

{"sheet":"Publish Com IS (R)","index":1,"n_rows":62,"n_cols":10,"rows_kept":62,"cut":false,"hidden":false,"merged":[[3,6,3,7],[3,2,3,4],[0,0,0,9],[61,0,63,9]]}
["CONDENSED CONSOLIDATED STATEMENTS OF COMPREHENSIVE INCOME (Rand)"]
[]
[]
[null,null,"Quarter ended",null,null,null,"Six months ended",null,null,"Year ended"]
[null,null,"31 December","30 September","31 December",null,"31 December","31 December",null,"30 June"]
[null,null,2011,2011,2010,null,"2011","2010",null,2011]
["Figures in million",null,"(Unaudited)","(Unaudited)","(Unaudited)",null,null,null,null,"(Audited)"]
[]
[]
[]
["Net profit for the period",null,1046,478,319,null,1524,421,null,617]
["Other comprehensive income for the period, net of income tax",null,179,955,-161,null,1134,-55,null,368]
[]
[]
["Foreign exchange translation",null,212,924,-131,null,1136,-25,null,470]
["(Loss)/gain fair value movement of available-for-sale investments ",null,-33,31,-30,null,-2,-30,null,-102]
[]
[]
["Total comprehensive income for the period",null,1225,1433,158,null,2658,366,null,985]
[]
[]
["Attributable to:"]
["Owners of the parent",null,1225,1433,158,null,2658,366,null,985]
["Non-controlling interest",null,0,0,0,null,0,0,null,0]
[]
[]
["The accompanying notes are an integral part of these condensed consolidated financial statements."]
[]
[]
[]
[]
[]
[]
[]
[]
[]
[]
[]
[]
[]
[]
[]
[]
[]
[]
[]
[]
[]
[]
[]
[]
[]
[]
[]
[]
[]
[]
[]
[]
[]
[]
["The preparation of the reviewed financial statements for the six months ended 31 December 2011 was supervised by the financial director, Hannes Meyer.  These financial statements were reviewed by the group's external auditors, PricewaterhouseCoopers Incorporated (see note 11) and approved by the Board of Harmony Gold Mining Company Limited."]

{"sheet":"Publish BS (R)","index":2,"n_rows":93,"n_cols":6,"rows_kept":93,"cut":false,"hidden":false,"merged":[]}
["CONDENSED CONSOLIDATED BALANCE SHEETS (Rand)"]
[]
[]
[null,null,"At","At","At","At"]
[null,null,"31 December","30 September","30 June","31 December"]
[null,null,2011,2011,2011,2010]
["Figures in million","Note"," ","(Unaudited)","(Audited)"," "]
[]
[]
["Assets"]
[]
["Non-current assets"]
[]
["Property, plant and equipment",null,32830,32278,31221,30218]
["Intangible assets",null,2185,2171,2170,2199]
["Restricted cash",null,31,31,31,26]
["Restricted investments",null,1929,1860,1883,1864]
["Investments in associates",null,0,0,0,358]
["Deferred tax assets",null,1179,1287,1149,723]
["Investments in financial assets",null,183,215,185,264]
["Inventories",null,169,168,172,232]
["Trade and other receivables",null,28,24,23,69]
[]
[]
["Total non-current assets",null,38534,38034,36834,35953]
[]
[]
[]
["Current assets"]
[]
["Restricted cash",null,0,0,0,0]
["Inventories",null,990,1006,837,943]
["Trade and other receivables",null,1131,876,1073,962]
["Income and mining taxes",null,194,100,139,102]
["Cash and cash equivalents",null,1205,1325,693,837]
[]
[]
[null,null,3520,3307,2742,2844]
["Assets of disposal groups classified as held-for-sale",3,315,314,268,0]
[]
[]
["Total current assets",null,3835,3621,3010,2844.480528]
[]
[]
[]
["Total assets",null,42369,41655,39844,38797.480528]
[]
[]
[]
["Equity and liabilities"]
[]
["Share capital and reserves"]
[]
["Share capital",null,28326,28314,28305,28277]
["Other reserves",null,1945,1741,762,266]
["Retained earnings",null,2359,1313,1093,897]
[]
[]
["Total equity",null,32630,31368,30160,29440]
[]
[]
[]
["Non-current liabilities"]
[]
["Deferred tax liabilities",null,4452,4300,4216,4336]
["Provision for environmental rehabilitation",null,2092,2046,1971,1752]
["Retirement benefit obligation and other provisions",null,177,174,174,179]
["Borrowings",6,991,1684,1229,1243]
[]
[]
["Total non-current liabilities",null,7712,8204,7590,7510.458928]
[]
[]
[]
["Current liabilities"]
[]
["Borrowings",6,323,331,330,344]
["Income and mining taxes",null,3,3,2,10]
["Trade and other payables",null,1684,1733,1746,1492.840682]
[]
[]
[null,null,2010,2067,2078,1846.840682]
["Liabilities of disposal groups classified as held-for-sale",3,17,16,16,0]
[]
[]
["Total current liabilities",null,2027,2083,2094,1846.6113190000001]
[]
[]
[]
["Total equity and liabilities",null,42369,41655,39844,38797.070247000003]
[]
[]
["The accompanying notes are an integral part of these condensed consolidated financial statements."]

{"sheet":"Publish CIE (R)","index":3,"n_rows":30,"n_cols":6,"rows_kept":30,"cut":false,"hidden":false,"merged":[[0,0,0,5]]}
["CONDENSED CONSOLIDATED STATEMENTS OF CHANGES IN EQUITY (Rand)"]
["for the six months ended 31 December 2011"]
[]
[]
["Figures in million",null,"Share capital","Other reserves","Retained earnings","Total"]
[]
[]
["Balance - 30 June 2011",null,28305,762,1093,30160]
["Issue of shares",null,21,0,0,21]
["Share-based payments",null,0,49,0,49]
["Net profit for the period",null,0,0,1524,1524]
["Other comprehensive income for the period",null,0,1134,0,1134]
["Dividends paid",null,0,0,-258,-258]
[]
[]
["Balance - 31 December 2011",null,28326,1945,2359,32630]
[]
[]
["Balance - 30 June 2010",null,28261,258,690,29209]
["Issue of shares",null,16,0,0,16]
["Share-based payments",null,0,63,0,63]
["Net profit for the period",null,0,0,421,421]
["Other comprehensive income for the period",null,0,-55,0,-55]
["Dividends paid",null,0,0,-214,-214]
[]
[]
["Balance - 31 December 2010",null,28277,266,897,29440]
[]
[]
["The accompanying notes are an integral part of these condensed consolidated financial statements."]

{"sheet":"Publish - Cash flow (R)","index":4,"n_rows":53,"n_cols":11,"rows_kept":53,"cut":false,"hidden":false,"merged":[[25,0,25,1],[45,0,45,1],[46,0,46,1],[49,0,49,1],[26,0,26,1],[29,0,29,1],[35,0,35,1],[32,0,32,1],[39,0,39,1],[42,0,42,1],[17,0,17,1],[3,7,3,8],[3,3,3,5],[23,0,23,1],[24,0,24,1],[10,0,10,1],[11,0,11,1],[12,0,12,1],[14,0,14,1],[20,0,20,1],[22,0,22,1]]}
["CONDENSED CONSOLIDATED CASH FLOW STATEMENTS (Rand)"]
[]
[]
[null,null,null,"Quarter ended",null,null,null,"Six months ended",null,null,"Year ended"]
[null,null,null,"31 December","30 September","31 December",null,"31 December","31 December",null,"30 June"]
[null,null,null,2011,2011,2010,null,2011,2010,null,"2011"]
["Figures in million",null,null,"(Unaudited)","(Unaudited)","(Unaudited)",null,null,null,null,"(Audited)"]
[]
[]
[]
["Cash flow from operating activities"]
["Cash generated by operations",null,null,1565.8655979999999,1092,450,null,2657.8655979999999,1153,null,2418]
["Interest and dividends received",null,null,12.495456999999998,16,38,null,28.495456999999998,52,null,140]
["Interest paid",null,null,-36.330912999999995,-41,-35,null,-77.330912999999995,-65,null,-134]
["Income and mining taxes paid",null,null,-148.66519400000001,0,-30,null,-148.66519400000001,-34,null,-45]
[]
[]
["Cash generated by operating activities",null,null,1393.3649479999999,1067,423,null,2460.3649479999999,1106,null,2379]
[]
[]
["Cash flow from investing activities"]
["Decreased in restricted cash",null,null,0,0,90,null,0,120,null,116]
["Proceeds on disposal of investment in subsidiary",null,null,0,0,0,null,0,229,null,229]
["Proceeds on disposal of available-for-sale financial assets",null,null,0,0,2,null,0,2,null,16]
["Pre-payment for Evander 6 and Twistdraai transaction",null,null,0,0,0,null,0,0,null,100]
["Other investing activities",null,null,2.5110209999999999,0,-6,null,2.5110209999999999,4,null,-5]
["Net additions to property, plant and equipment",null,null,-778.81224199999997,-668,-846,null,-1446.812242,-1594,null,-3110]
[null,null,null,null,null,null,null,0]
[]
["Cash utilised by investing activities",null,null,-776.30122099999994,-668,-760,null,-1444.3012209999999,-1239,null,-2654]
[]
[]
["Cash flow from financing activities"]
["Borrowings raised",null,null,0,799,525,null,799.15554199999997,525,null,925]
["Borrowings repaid",null,null,-717.94527999999991,-352,-107,null,-1069.9452799999999,-114,null,-546]
["Ordinary shares issued - net of expenses",null,null,10.994992,9,8,null,19.994992,16,null,44]
["Dividends paid",null,null,0,-258,0,null,-258.087222,-214,null,-214]
[]
[]
["Cash (utilised)/generated by financing activities",null,null,-707,198,426,null,-508.88196799999992,213,null,209]
[]
[]
["Foreign currency translation adjustments",null,null,-30.320802999999998,35,-24,null,4.6791970000000003,-13,null,-11]
[]
[]
["Net (decrease)/increase in cash and cash equivalents",null,null,-120,632,65,null,511.86095600000004,67,null,-77]
["Cash and cash equivalents - beginning of period",null,null,1325,693,772,null,693,770,null,770]
[]
[]
["Cash and cash equivalents - end of period",null,null,1205,1325,837,null,1205,837,null,693]
[]
[]
["The accompanying notes are an integral part of these condensed consolidated financial statements."]

{"sheet":"Publish - Notes to result ","index":5,"n_rows":299,"n_cols":19,"rows_kept":299,"cut":false,"hidden":false,"merged":[[60,1,61,18],[256,19,256,20],[23,1,23,7],[40,3,41,18],[135,3,135,10],[125,1,125,7],[73,9,73,11],[73,14,73,15],[86,1,86,7],[87,1,87,7],[93,1,93,7],[26,1,26,7],[28,1,28,7],[29,1,29,7],[46,1,49,18],[0,0,1,18],[17,9,17,11],[7,1,13,18],[17,14,17,15],[25,1,25,7],[27,1,27,7],[94,1,94,7],[293,1,294,18],[214,1,216,18],[109,1,109,7],[110,1,110,7],[126,1,126,7],[111,1,111,7],[112,1,112,7],[113,1,113,7],[175,3,176,18],[256,15,256,18],[262,1,266,10],[226,3,230,18],[232,3,234,18],[236,3,240,18],[275,1,275,11],[51,1,54,18],[56,1,56,18],[298,1,301,18],[30,1,30,7],[247,3,248,18],[107,1,107,7],[218,1,222,18],[45,1,45,7],[108,1,108,7],[172,3,173,18],[169,3,170,18],[114,1,114,7],[166,3,167,18],[65,1,67,18],[69,1,71,18]]}
["NOTES TO THE CONDENSED CONSOLIDATED FINANCIAL STATEMENTS FOR THE PERIOD ENDED 31 DECEMBER 2011 (Rand)"]
[]
[]
[]
[1,"Accounting policies"]
[]
[null,"Basis of accounting"]
[null,"The condensed consolidated financial statements for the six months ended 31 December 2011 have been prepared in accordance with IAS 34, Interim Financial Reporting, JSE Listings Requirements and in the manner required by the Companies Act of South Africa. They should be read in conjunction with the annual financial statements for the year ended 30 June 2011, which have been prepared in accordance with International Financial Reporting Standards as issued by the International Accounting Standards Board (IFRS). The accounting policies are consistent with those described in the annual financial statements, except for the adoption of applicable revised and/or new standards issued by the International Accounting Standards Board."]
[]
[]
[]
[]
[]
[]
[]
[2,"Cost of sales"]
[]
[null,null,null,null,null,null,null,null,null,"Quarter ended",null,null,null,null,"Six months ended",null,null,null,"Year ended"]
[null,null,null,null,null,null,null,null,null,"31 December","30 September","31 December",null,null,"31 December","31 December",null,null,"30 June"]
[null,null,null,null,null,null,null,null,null,"2011","2011","2010",null,null,2011,2010,null,null,"2011"]
[null,"Figures in million",null,null,null,null,null,null,null,"(Unaudited)","(Unaudited)","(Unaudited)",null,null,null,null,null,null,"(Audited)"]
[]
[]
[null,"Production costs - excluding royalty",null,null,null,null,null,null,null,2684,2590.5837748600002,2093,null,null,5274.5837748600006,4501,null,null,9074]
[null,"Royalty expense",null,null,null,null,null,null,null,59,32.416225140000002,30,null,null,91.416225139999995,53,null,null,96]
[null,"Amortisation and depreciation",null,null,null,null,null,null,null,528,475,442,null,null,1003,868,null,null,1776]
[null,"Impairment of assets",null,null,null,null,null,null,null,0,0,0,null,null,0,0,null,null,264]
[null,"Rehabilitation expenditure",null,null,null,null,null,null,null,1,5,5,null,null,6,9,null,null,74]
[null,"Care and maintenance cost of restructured shafts",null,null,null,null,null,null,null,23,31,28,null,null,54,53,null,null,124]
[null,"Employment termination and restructuring costs ⁽¹⁾",null,null,null,null,null,null,null,17,34,54,null,null,51,132,null,null,158]
[null,"Share-based payments",null,null,null,null,null,null,null,25,24,32,null,null,49,63,null,null,136]
[null,"Other",null,null,null,null,null,null,null,0,0,-178,null,null,0,-178,null,null,-87]
[null,"Insurance adjustment/(credit)",null,null,null,null,null,null,null,0,0,-179,null,null,null,-179,null,null,-174]
[null,"Provision for post-retirement benefits",null,null,null,null,null,null,null,0,0,1,null,null,null,1,null,null,-5]
[null,"Other cost of sales adjustments",null,null,null,null,null,null,null,0,0,0,null,null,null,null,null,null,92]
[]
[]
[null,"Total cost of sales",null,null,null,null,null,null,null,3337,3192,2506,null,null,6529.0000000000009,5501,null,null,11615]
[]
[]
[null,"⁽¹⁾ ",null,"The amount of R17 million in December 2011 quarter (R34 million in September 2011 quarter) relates to restructuring at the Bambanani shaft."]
[]
[]
[3,"Disposal groups classified as held for sale and discontinued operations"]
[]
[null,"Investment in associate"]
[null,"The investment in Rand Uranium (Proprietary) Limited (“Rand Uranium”) has been classified as held for sale following a decision by the shareholders of the company to commence with a process to sell the company. In terms of the binding offer accepted by the shareholders on 21 April 2011, the capital portion of the subordinated shareholder’s loan of R61 million due to the group will be repaid out of the sale proceeds. The group's attributable portion of the sale proceeds amounts to US$38 million."]
[]
[]
[]
[]
[null," The investment is carried at the lower of carrying value and fair value less cost to sell.  At each reporting date, the carrying value is remeasured for possible impairment or reversal of impairment.  An impairment of R142 million has been recognised for the 2011 year. During December 2011 quarter, a reversal of impairment of R2 million (year to date R50 million) was recognised resulting from changes in the US$/R exchange rate."]
[]
[]
[]
[]
[null,"See note 8 for developments after balance sheet date."]
[]
[4,"Deferred taxation"]
[]
[null,"During the December quarter several mines in the group redeemed capital allowances against their increased taxable income, resulting in the increased deferred tax expense."]
[]
[]
[5,"Earnings and net asset value per share"]
[]
[null,"Earnings per share is calculated on the weighted average number of shares in issue for the quarter ended 31 December 2011: 430.5 million (30 September 2011: 430.1 million, 31 December 2010: 429.1 million), six months ended 31 December 2011: 430.2 million (31 December 2010: 428.9 million), and the year ended 30 June 2011: 429.3 million."]
[]
[]
[]
[null,"Diluted earnings per share is calculated on weighted average number of diluted shares in issue for the quarter ended 31 December 2011: 432.3 million (30 September 2011: 431.6 million, 31 December 2010: 429.9 million), six months ended 31 December 2011: 431.9 million (31 December 2010: 429.7 million), and the year ended 30 June 2011: 430.4 million."]
[]
[]
[]
[null,null,null,null,null,null,null,null,null,"Quarter ended",null,null,null,null,"Six months ended",null,null,null,"Year ended"]
[null,null,null,null,null,null,null,null,null,"31 December","30 September","31 December",null,null,"31 December","31 December",null,null,"30 June"]
[null,null,null,null,null,null,null,null,null,"2011","2011","2010",null,null,2011,2010,null,null,2010]
[null,null,null,null,null,null,null,null,null,"(Unaudited)","(Unaudited)","(Unaudited)",null,null,null,null,null,null,"(Audited)"]
[]
[]
[null,"Total earnings per share (cents):"]
[]
[null,"Basic earnings",null,null,null,null,null,null,null,243,111,74,null,null,354,98,null,null,144]
[null,"Diluted earnings",null,null,null,null,null,null,null,242,111,74,null,null,353,98,null,null,144]
[null,"Headline earnings",null,null,null,null,null,null,null,242,95,69,null,null,337.47838279501929,101,null,null,223]
[]
[]
[null,"- from continuing operations",null,null,null,null,null,null,null,242,95,69,null,null,337.47838279501929,101,null,null,223]
[null,"- from discontinued operations",null,null,null,null,null,null,null,0,0,0,null,null,0,0,null,null,0]
[]
[]
[null,"Diluted headline earnings",null,null,null,null,null,null,null,241,95,69,null,null,336.18793357950364,101,null,null,222]
[]
[null,null,null,null,null,null,null,null,null,null,null,69]
[null,"- from continuing operations",null,null,null,null,null,null,null,241,95,69,null,null,336.18793357950364,101,null,null,222]
[null,"- from discontinued operations",null,null,null,null,null,null,null,0,0,0,null,null,0,0,null,null,0]
[]
[]
[null,"Figures in million"]
[]
[]
[null,"Reconciliation of headline earnings:"]
[]
[null,"Continuing operations"]
[]
[null,"Net profit",null,null,null,null,null,null,null,1046,478,296,null,null,1524,401,null,null,596.77633831000003]
[]
[null,"Adjusted for:"]
[null,"Profit on sale of property, plant and equipment",null,null,null,null,null,null,null,-4,-26,-1,null,null,-30,-17,null,null,-29]
[null,"Taxation effect of profit on sale of property, plant and equipment",null,null,null,null,null,null,null,1,7,0,null,null,8,5,null,null,7]
[null,"Net gain on financial instruments",null,null,null,null,null,null,null,0,0,-1,null,null,0,-1,null,null,-7]
[null,"Taxation effect of net gain on financial instruments",null,null,null,null,null,null,null,0,0,0,null,null,0,0,null,null,2]
[null,"(Reversal of impairment)/impairment  of investment in associate*",null,null,null,null,null,null,null,-2,-48,0,null,null,-50,0,null,null,142.02366169000001]
[null,"Foreign exchange loss reclassified from other comprehensive income*",null,null,null,null,null,null,null,0,0,0,null,null,0,47,null,null,47]
[null,"Impairment of assets",null,null,null,null,null,null,null,0,0,0,null,null,0,0,null,null,264]
[null,"Taxation effect of impairment of assets",null,null,null,null,null,null,null,0,0,0,null,null,0,0,null,null,-66]
[null,null,null,null,null,null,null,null,null,0]
[]
[null,"Headline earnings",null,null,null,null,null,null,null,1041,411,294,null,null,1452,435,null,null,956.80000000000007]
[]
[]
[null,"Discontinued operations"]
[]
[null,"Net profit",null,null,null,null,null,null,null,0,0,23,null,null,0,20,null,null,20]
[]
[null,"Adjusted for:"]
[null,"Profit on sale of investment in subsidiary",null,null,null,null,null,null,null,0,0,-23,null,null,0,-54,null,null,-54]
[null,"Taxation effect of profit on sale of investment in subsidiary",null,null,null,null,null,null,null,0,0,0,null,null,0,34,null,null,34]
[]
[]
[null,"Headline earnings",null,null,null,null,null,null,null,0,0,0,null,null,0,0,null,null,0]
[]
[]
[null,"Total headline earnings",null,null,null,null,null,null,null,1041,411,294,null,null,1452,435,null,null,956.80000000000007]
[]
[]
[null,"* ",null,"There is no taxation effect on these items."]
[]
[null,"Net asset value per share (cents)"]
[]
[]
[null,null,null,null,null,null,null,null,null,null,null,"At",null,null,"At","At",null,null,"At"]
[null,null,null,null,null,null,null,null,null,null,null,"31 December",null,null,"30 September","30 June",null,null,"31 December"]
[null,null,null,null,null,null,null,null,null,null,null,"2011",null,null,"2011","2011",null,null,"2010"]
[null,null,null,null,null,null,null,null,null,null,null,null,null,null,"(Unaudited)","(Audited)"]
[]
[]
[null,"Number of shares in issue",null,null,null,null,null,null,null,null,null,431312677,null,null,430272715,430084628,null,null,429506618]
[null,"Net asset value per share (cents)",null,null,null,null,null,null,null,null,null,7565.2772895427788,null,null,7290,7013,null,null,6854]
[]
[]
[6,"Borrowings"]
[]
[null,null,null,null,null,null,null,null,null,null,null,"At",null,null,"At","At",null,null,"At"]
[null,null,null,null,null,null,null,null,null,null,null,"31 December",null,null,"30 September","30 June",null,null,"31 December"]
[null,null,null,null,null,null,null,null,null,null,null,"2011",null,null,"2011","2011",null,null,"2010"]
[null,"Figures in million",null,null,null,null,null,null,null,null,null,null,null,null,"(Unaudited)","(Audited)"]
[]
[]
[null,"Total long-term borrowings",null,null,null,null,null,null,null,null,null,991,null,null,1684,1229,null,null,1243]
[null,"Total current portion of borrowings",null,null,null,null,null,null,null,null,null,323,null,null,331,330,null,null,344]
[]
[]
[null,"Total borrowings ⁽¹⁾ ⁽²⁾",null,null,null,null,null,null,null,null,null,1314,null,null,2015,1559,null,null,1587]
[]
[]
[]
[null,"⁽¹⁾",null,"The Nedbank revolving credit facility was repaid in full during the December 2011 quarter following repayments totalling R550 million. The full R850 million facility is available until December 2013."]
[]
[]
[null,null,null,"A bi-annual repayment of R152.5 million on the Nedbank term facilities during the December 2011 quarter reduced the balance to R915 million."]
[]
[]
[null,null,null,"There is no change regarding the US$300 million syndicated revolving credit facility, with US$250 million still available.  The facility is repayable by August 2015 and attracts interest at LIBOR plus 260 basis points, which is payable quarterly."]
[]
[]
[null,"⁽²⁾",null,"Included in the borrowings is R44 million (30 September 2011: R52 million; December 2010: R63 million) owed to Westpac Bank Limited in terms of a finance lease agreement. The future minimum lease payments are as follows:"]
[]
[]
[null,null,null,null,null,null,null,null,null,null,null,"At",null,null,"At","At",0,0,"At"]
[null,null,null,null,null,null,null,null,null,null,null,"31 December",null,null,"30 September","30 June",0,0,"31 December"]
[null,null,null,null,null,null,null,null,null,null,null,"2011",null,null,"2011","2011",null,null,"2010"]
[null,null,null,"Figures in million",null,null,null,null,null,null,null,null,null,null,"(Unaudited)","(Audited)"]
[]
[]
[null,null,null,"Due within one year",null,null,null,null,null,null,null,33.778289999999998,null,null,31,29,null,null,28]
[null,null,null,"Due between one and five years",null,null,null,null,null,null,null,10.720435999999999,null,null,22,23,null,null,36]
[null,null,null,null,null,null,null,null,null,null,null,0]
[null,null,null,null,null,null,null,null,null,null,null,44498726.329328448]
[null,null,null,null,null,null,null,null,null,null,null,45,null,null,53,52,null,null,64]
[null,null,null,"Future finance charges",null,null,null,null,null,null,null,-0.69835499999999995,null,null,-1,-1,null,null,-1]
[]
[]
[null,null,null,"Total future minimum lease payments",null,null,null,null,null,null,null,44.301645000000001,null,null,52,51,null,null,63]
[]
[]
[7,"Commitments and contingencies"]
[null,null,null,null,null,null,null,null,null,null,null,"At",null,null,"At","At",0,0,"At"]
[null,null,null,null,null,null,null,null,null,null,null,"31 December",null,null,"30 September","30 June",0,0,"31 December"]
[null,null,null,null,null,null,null,null,null,null,null,"2011",null,null,"2011","2011",null,null,"2010"]
[null,"Figures in million",null,null,null,null,null,null,null,null,null,null,null,null,"(Unaudited)","(Audited)"]
[]
[]
[null,"Capital expenditure commitments:"]
[null,"Contracts for capital expenditure",null,null,null,null,null,null,null,null,null,290.85605800000002,null,null,290,194,null,null,166]
[null,"Authorised by the directors but not contracted for",null,null,null,null,null,null,null,null,null,3372.7180549999998,null,null,3570,1504,null,null,2669]
[]
[]
[null,null,null,null,null,null,null,null,null,null,null,3663.5741129999997,null,null,3860,1698,null,null,2835]
[]
[]
[null,"This expenditure will be financed from existing resources and, where appropriate, borrowings."]
[]
[null,"Contingent liability"]
[]
[null,"For a detailed disclosure on contingent liabilities refer to Harmony's annual report for the financial year ended 30 June 2011, available on the group's website (www.harmony.co.za). There were no significant changes in contingencies since 30 June 2011, except as discussed below."]
[]
[]
[]
[null,"Harmony reached a mutually acceptable settlement with the plaintiff class and this settlement was found to be fair and reasonable and was approved by the United States District Court in November 2011.  A single class member has filed an appeal of the District Court's order approving the settlement.  That appeal is currently pending in the United States Court of Appeals for the Second Circuit.  The settlement amount has been paid into escrow by the company's insurers and will distributed to the plaintifs once the appeal has been finalised."]
[]
[]
[]
[]
[]
[8,"Subsequent events"]
[]
[null,"(a)",null,"A process was initiated during financial year 2011 for the disposal Rand Uranium (Proprietary) Limited (“Rand Uranium”), of which Harmony held 40%.  Gold One International Limited (“Gold One”) made a binding offer to acquire 100% of Rand Uranium for a total consideration of US$250 million. The offer was accepted by the shareholders of Rand Uranium. All conditions precedent to the agreement were fulfilled and the transaction was declared unconditional and closed on Friday 6 January 2012 (“Completion Date”)."]
[]
[]
[]
[]
[]
[null,null,null,"Harmony’s portion of the purchase price amounts to approximately US$38 million of which US$24 million was settled in cash on 6 January 2012 realising an amount of R193 million. The balance of US$14 million is to be settled in either cash, Gold One ordinary shares, or a combination thereof within 90 days of the Completion Date."]
[]
[]
[]
[null,"(b)",null,"Harmony has signed a sale of share and claims agreement on 30 January 2012 with Pan Africa Resources plc and Witwatersrand Consolidated Gold Resources Limited (the \"Consortium\") for the disposal of Harmony's entire interest in Evander Gold Mines Limited (\"Evander\").  The disposal will be for an aggregate purchase consideration of R1.7 billion, excluding the proceeds of the Taung Gold Limited transaction and less certain distributions made by Evander to Harmony between 1 April 2012 and the close of the transaction."]
[]
[]
[]
[]
[]
[null,null,null,"The transaction is subject to, among others, the following conditions precedent:"]
[null,null,null,"●   the Consortium raising the required funding comprising of debt and/or equity;"]
[null,null,null,"●   each of the Consortium members obtaining the requisite shareholder approvals for the acquisition; and"]
[null,null,null,"●   obtaining all relevant regulatory approvals."]
[]
[null,"(c)",null,"On 2 February 2012, the Board approval an interim dividend of 40 cents, amounting to approximately R173 million, payable on 12 March 2012."]
[]
[]
[9,"Segment report"]
[]
[null,"The segment report follows on the page XX."]
[]
[10,"Reconciliation of segment information to consolidated income statements"]
[]
[null,null,null,null,null,null,null,null,null,null,null,null,null,null,null,"Six months ended"]
[null,null,null,null,null,null,null,null,null,null,null,null,null,null,null,"31 December",null,null,"31 December"]
[null,null,null,null,null,null,null,null,null,null,null,null,null,null,null,"2011",null,null,"2010"]
[null,"Figures in million"]
[]
[]
[null,"The \"Reconciliation of segment information to consolidated income statement\" line item in the segment report is broken down in the following elements, to give a better understanding of the differences between the income statement and segment report:"]
[]
[]
[]
[]
[]
[null,"Reconciliation of production profit to gross profit"]
[]
[null,"Total segment revenue",null,null,null,null,null,null,null,null,null,null,null,null,null,8749,null,null,6073]
[null,"Total segment production costs and royalty expense",null,null,null,null,null,null,null,null,null,null,null,null,null,-5366,null,null,-4554]
[]
[]
[null,"Production profit per segment report",null,null,null,null,null,null,null,null,null,null,null,null,null,3383,null,null,1519]
[null,"Cost of sales items, other than production costs and royalty expense ",null,null,null,null,null,null,null,null,null,null,null,null,null,-1163,null,null,-947]
[]
[]
[null,"Amortisation and depreciation",null,null,null,null,null,null,null,null,null,null,null,null,null,-1003,null,null,-868]
[null,"Impairment of assets",null,null,null,null,null,null,null,null,null,null,null,null,null,0,null,null,0]
[null,"Employment termination and restructuring costs",null,null,null,null,null,null,null,null,null,null,null,null,null,-51,null,null,-132]
[null,"Share-based payments",null,null,null,null,null,null,null,null,null,null,null,null,null,-49,null,null,-63]
[null,"Rehabilitation costs",null,null,null,null,null,null,null,null,null,null,null,null,null,-6,null,null,-9]
[null,"Care and maintenance costs of restructured shafts",null,null,null,null,null,null,null,null,null,null,null,null,null,-54,null,null,-53]
[null,"Other",null,null,null,null,null,null,null,null,null,null,null,null,null,0,null,null,178]
[null,"Insurance credit",null,null,null,null,null,null,null,null,null,null,null,null,null,0,null,null,179]
[null,"Provision for post-retirement benefits",null,null,null,null,null,null,null,null,null,null,null,null,null,0,null,null,-1]
[null,"Other cost of sales adjustment",null,null,null,null,null,null,null,null,null,null,null,null,null,0,null,null,0]
[]
[]
[null,"Gross profit as per income statements *",null,null,null,null,null,null,null,null,null,null,null,null,null,2220,0,0,572]
[]
[]
[null,"*  The reconciliation was done up to the first recognisable line item on the income statement. The reconciliation will follow the income statement after that."]
[]
[]
[11,"Review report"]
[]
[null,"The condensed consolidated financial statements for the six months ended 31 December 2011 on pages XXX to XXX have been reviewed in accordance with International Standards on Review Engagements 2410 – “Review of interim financial information performed by the Independent Auditors of the entity” by PricewaterhouseCoopers Inc. Their unqualified review report is available for inspection at the company’s registered office."]

{"sheet":"Segment Report (R)","index":6,"n_rows":53,"n_cols":13,"rows_kept":53,"cut":false,"hidden":false,"merged":[[6,11,6,12],[9,1,9,2],[9,3,9,4],[9,5,9,6],[9,7,9,8],[9,9,9,10],[9,11,9,12],[6,1,6,2],[6,3,6,4],[6,5,6,6],[6,7,6,8],[6,9,6,10],[7,1,7,2],[7,3,7,4],[7,5,7,6],[7,7,7,8],[7,9,7,10],[7,11,7,12],[44,0,46,0]]}
["Notes to the group financial statements"]
["for the six months ended 31 December 2011"]
[]
[]
["SEGMENT REPORT (Rand)"]
[]
[null,"Revenue",null,"Production cost",null,"Production profit/(loss)",null,"Capital expenditure",null,"Kilograms produced*",null,"Tonnes milled*"]
[null,"31 December",null,"31 December",null,"31 December",null,"31 December",null,"31 December",null,"31 December"]
[null,2011,2010,2011,2010,2011,2010,2011,2010,2011,2010,2011,2010]
[null,"R million",null,"R million",null,"R million",null,"R million",null,"kg",null,"t'000"]
[]
[]
["Continuing operations"]
["South Africa"]
["Underground"]
["Bambanani",322,502,365,421,-43,81,143,156,825,1716,132,233]
["Doornkop",746,360,448,295,298,65,139,154,1763,1184,509,311]
["Evander",688,315,349,316,339,-1,88,116,1695,1069,240,279]
["Joel",612,169,299,198,313,-29,28,40,1418,556,297,168]
["Kusasalethu",1099,772,660,643,439,129,211,189,2822,2559,587,497]
["Masimong",715,730,438,397,277,333,122,89,1690,2414,464,462]
["Phakisa",501,267,389,223,112,44,149,194,1184,882,239,193]
["Target",1047,511,635,358,412,153,164,252,2497,1982,572,401]
["Tshepong",1164,1000,631,581,533,419,135,133,2738,3316,593,683]
["Virginia",343,398,251,349,92,49,34,49,802,1326,192,366]
[]
["Surface"]
["All other surface operations ",792,589,485,431,307,158,62,66,1883,2024,4698,5328]
[]
[]
["Total South Africa",8029,5613,4950,4212,3079,1401,1275,1438,19317,19028,8523,8921]
[]
[]
["International"]
["Papua New Guinea",720,460,416,342,304,118,93,144,1608,1498,889,852]
["Other",0,0,0,0,0,0,14,0,0,0,0,0]
[]
[]
["Total international",720,460,416,342,304,118,207,144,1608,1498,889,852]
[]
[]
["Total continuing operations",8749,6073,5366,4554,3383,1519,1482,1582,20925,20526,9412,9773]
[]
[]
["Reconciliation of the segment information to the consolidated income statement (refer to note 10)"]
[]
[null,0,0,0,0]
[]
[]
[null,8749,6073,5366,4554]
[]
[]
["* Production statistics are unaudited."]

{"sheet":"Publish IS (US$)","index":7,"n_rows":90,"n_cols":13,"rows_kept":90,"cut":false,"hidden":false,"merged":[[0,0,0,12],[4,3,4,5],[4,8,4,9],[89,0,91,12],[84,0,85,12]]}
["CONDENSED CONSOLIDATED INCOME STATEMENTS (US$)"]
["(Convenience translation)"]
[]
[null,null,null,"30","31","31",null,null,"31","31",null,null,"30"]
[null,null,null,"Quarter ended",null,null,null,null,"Six months ended",null,null,null,"Year ended"]
[null,null,null,"31 December","30 September","31 December",null,null,"31 December","31 December",null,null,"30 June"]
[null,null,null,2011,2011,2010,null,null,2011,2010,null,null,"2011"]
["Figures in million",null,null,"(Unaudited)","(Unaudited)","(Unaudited)",null,null,"(Unaudited)","(Unaudited)",null,null,"(Audited)"]
[]
[]
["Continuing operations"]
[]
["Revenue",null,null,595,550,434,null,null,1149.4001866039982,856.10554401697084,null,null,1781]
["Cost of sales",null,null,-412,-447,-364,null,null,-857,-775.47120000615132,null,null,-1664]
[]
[]
["Production costs",null,null,-339,-367,-308,null,null,-706,-641.97343116306365,null,null,-1313]
["Royalty expense",null,null,0,0,0,null,null,0,0,null,null,0]
["Amortisation and depreciation",null,null,-65,-67,-64,null,null,-131,-122.36120734508985,null,null,-254]
["Impairment of assets",null,null,0,0,0,null,null,0,0,null,null,-39]
["Employment termination and restructuring costs",null,null,-2,-5,-8,null,null,-7,-18.607925540958366,null,null,-23]
["Other items",null,null,-6,-8,16,null,null,-13,7.4713640429605555,null,null,-35]
[]
[]
["Gross profit",null,null,183,103,70,null,null,292.40018660399824,80.634344010819518,null,null,117]
["Corporate, administration and other expenditure",null,null,-11,-12,-14,null,null,-23,-27,null,null,-51]
["Social investment expenditure",null,null,-2,-2,-3,null,null,-4,-5.4577961825558807,null,null,-12]
["Exploration expenditure",null,null,-12,-14,-11,null,null,-26,-24.6,null,null,-51]
["Profit on sale of property, plant and equipment",null,null,0,4,0,null,null,4,2,null,null,4]
["Other income/(expenses) - net",null,null,3,3,1,null,null,6,-7,null,null,-3]
[]
[]
["Operating profit",null,null,161,82,43,null,null,249.40018660399824,18.576547828263635,null,null,4]
["Loss from associates",null,null,0,0,-3,null,null,0,-3.8061665879233018,null,null,-7]
["Reversal of impairment/(impairment) of investment in associate",null,null,0,7,0,null,null,7,0,null,null,-20]
["Net gain/(loss) on financial instruments",null,null,8,-4,11,null,null,5,54.836992692672759,null,null,20]
["Gain on farm-in option",null,null,0,0,0,null,null,0,0,null,null,38]
["Investment income",null,null,3,2,6,null,null,5,7.3303949100745074,null,null,20]
["Finance cost",null,null,-10,-10,-10,null,null,-21,-18.044049009414174,null,null,-41]
[]
[]
["Profit before taxation",null,null,162,77,47,null,null,245.40018660399824,58.893719833673423,null,null,14]
["Taxation",null,null,-33,-10,-4,null,null,-45,-3.101320923493061,null,null,69]
[]
[]
["Normal taxation",null,null,-7,-6,0,null,null,-13,-1.2687221959744341,null,null,-2]
["Deferred taxation",null,null,-26,-4,-4,null,null,-32,-1.8325987275186268,null,null,71]
[]
[]
["Net profit from continuing operations",null,null,129,67,43,null,null,200.40018660399824,55.79239891018036,null,null,83]
[]
[]
["Discontinued operations"]
[]
["Profit from discontinued operations",null,null,0,0,3,null,null,0,2.8193826577209644,null,null,3]
[]
[]
["Net profit for the period",null,null,129,67,46,null,null,200.40018660399824,58.611781567901325,null,null,86]
[]
[]
["Attributable to:"]
["Owners of the parent",null,null,129,67,46,null,null,200.40018660399824,58.611781567901325,null,null,86]
["Non-controlling interest",null,null,0,0,0,null,null,0,0,null,null,0]
[]
[]
[]
["Earnings per ordinary share (cents)"]
[]
["Earnings from continuing operations",null,null,30,16,10,null,null,46,13.251098491288532,null,null,19]
["Earnings from discontinued operations",null,null,0,0,1,null,null,0,0.7048456644302411,null,null,1]
[]
[]
["Total earnings per ordinary share (cents)",null,null,30,16,11,null,null,46,13.955944155718774,null,null,20]
[]
[]
["Diluted earnings per ordinary share (cents)"]
[]
["Earnings from continuing operations",null,null,30,16,10,null,null,46,13.251098491288532,null,null,19]
["Earnings from discontinued operations",null,null,0,0,1,null,null,0,0.7048456644302411,null,null,1]
[]
[]
["Total diluted earnings per ordinary share (cents)",null,null,30,16,11,null,null,46,13.955944155718774,null,null,20]
[]
[]
["The currency conversion average rates for the quarter ended: December 2011: US$1 = R8.10 (September 2011: US$1 = R7.14, December 2010: US$1 = 6.88). Six months ended: December 2011: US$1 = R7.61 (December 2010: US$1 = R 7.09)."]
[]
["The income statement for the year ended 30 June 2011 has been extracted from the 2011 Annual Report."]
[]
["Note on convenience translations"]
["Except where specific statements have been extracted from the 2011 Annual Report, the requirements of IAS 21, The Effects of the Changes in Foreign Exchange Rates, have not necessarily been applied in the translation of the US Dollar financial statements presented on pages XX to XX."]

{"sheet":"Publish Com IS (US$)","index":8,"n_rows":30,"n_cols":10,"rows_kept":30,"cut":false,"hidden":false,"merged":[[4,2,4,4],[4,6,4,7],[27,0,28,9]]}
["CONDENSED CONSOLIDATED STATEMENTS OF COMPREHENSIVE INCOME (US$)"]
["(Convenience translation)"]
[]
[]
[null,null,"Quarter ended",null,null,null,"Six months ended",null,null,"Year ended"]
[null,null,"31 December","30 September","31 December",null,"31 December","31 December",null,"30 June"]
[null,null,2011,2011,2010,null,2011,2010,null,2011]
["Figures in million",null,"(Unaudited)","(Unaudited)","(Unaudited)",null,"(Unaudited)","(Unaudited)",null,"(Audited)"]
[]
[]
[]
["Net profit for the period",null,129,67,46,null,200.40018660399824,58.611781567901325,null,86]
["Other comprehensive income for the period, net of income tax",null,22.10665832788694,134,-23.393342341949641,null,149.24204045972593,-8,null,540]
[]
[]
["Foreign exchange translation",null,26.182187516826993,130,-19.034334452145359,null,149.24204045972593,-4,null,555]
["(Loss)/gain fair value movement of available-for-sale investments ",null,-4.0755291889400507,4,-4.359007889804281,null,0,-4,null,-15]
[]
[]
["Total comprehensive income for the period",null,151.10665832788695,201,22.606657658050359,null,349.64222706372414,50.611781567901325,null,626]
[]
[]
["Attributable to:"]
["Owners of the parent",null,151.10665832788695,201,22.606657658050359,null,349.64222706372414,50.611781567901325,null,626]
["Non-controlling interest",null,0,0,0,null,0,0,null,0]
[]
[]
["The currency conversion average rates for the quarter ended: December 2011: US$1 = R8.10 (September 2011: US$1 = R7.14, December 2010: US$1 = 6.88).Six months ended: December 2011: US$1 = R7.61 (December 2010: US$1 = R 7.09)."]
[]
["The statement of comprehensive income for the year ended 30 June 2011 has been extracted from the 2011 Annual Report."]

{"sheet":"Publish BS (US$)","index":9,"n_rows":94,"n_cols":6,"rows_kept":94,"cut":false,"hidden":false,"merged":[[92,0,92,5]]}
["CONDENSED CONSOLIDATED BALANCE SHEETS (US$)"]
["(Convenience translation)"]
[]
[null,null,"At","At","At","At"]
[null,null,"31 December","30 September","30 June","31 December"]
[null,null,2011,2011,2011,2010]
["Figures in million",null,"(Unaudited)","(Unaudited)","(Audited)","(Unaudited)"]
[]
[]
["Assets"]
[]
["Non-current assets"]
[]
["Property, plant and equipment",null,4050,3997,4607,4568]
["Intangible assets",null,269,269,320,332]
["Restricted cash",null,4,4,5,4]
["Restricted investments",null,238,230,278,282]
["Investments in associates",null,0,0,0,54]
["Deferred tax assets",null,145,159,170,109]
["Investments in financial assets",null,23,27,27,40]
["Inventories",null,21,21,25,35]
["Trade and other receivables",null,3,3,3,10]
[null,null,null,null,null,0]
[]
["Total non-current assets",null,4753,4710,5435,5434]
[]
[]
[]
["Current assets"]
[]
["Inventories",null,122,125,124,143]
["Trade and other receivables",null,139,109,158,145]
["Income and mining taxes",null,24,12,21,15]
["Cash and cash equivalents",null,149,164,102,127]
[]
[]
[null,null,434,410,405,430]
["Assets of disposal groups classified as held-for-sale",null,39,39,40,0]
[]
[]
["Total current assets",null,473,449,445,430]
[]
[]
[]
["Total assets",null,5226,5159,5880,5864]
[]
[]
[]
["Equity and liabilities"]
[]
["Share capital and reserves"]
[]
["Share capital",null,3494,3506,4033,4275]
["Other reserves",null,240,216,519,40]
["Retained earnings",null,291,163,-102,136]
[]
[]
["Total equity",null,4025,3885,4450,4451]
[]
[]
[]
["Non-current liabilities"]
[]
["Deferred tax liabilities",null,549,533.38390092879263,623,655]
["Provision for environmental rehabilitation",null,258,253.37461300309599,291,265]
["Retirement benefit obligation and other provisions",null,22,22,26,27]
["Borrowings",null,122,208.54489164086689,181,188]
[null,null,null,0]
[null,null,null,0]
["Total non-current liabilities",null,951,1017.3034055727555,1121,1135]
[]
[]
[]
["Current liabilities"]
[]
["Borrowings",null,40,40.99071207430341,49,52]
["Income and mining taxes",null,0,0,0,1]
["Trade and other payables",null,208,213.73684210526318,258,225]
[]
[]
[null,null,248,254.7275541795666,307,278]
["Liabilities of disposal groups classified as held-for-sale",null,2,1.9814241486068114,2,0]
[]
[]
["Total current liabilities",null,250,256.70897832817343,309,278]
[]
[]
[]
["Total equity and liabilities",null,5226,5159.0123839009293,5880,5864]
[]
[]
[]
["The balance sheet for December 2011 converted at a conversion rate of US$1 = R8.11 (September 2011: US$1 = R 8.08, December 2010: US$1 = R6.62)."]
["The balance sheet as at 30 June 2011 has been extracted from the 2011 Annual Report. "]

{"sheet":"Publish CIE (US$)","index":10,"n_rows":31,"n_cols":6,"rows_kept":31,"cut":false,"hidden":false,"merged":[]}
["CONDENSED CONSOLIDATED STATEMENTS OF CHANGES IN EQUITY (US$) (Unaudited)"]
["for the six months ended 31 Decemberr 2011"]
["(Convenience translation)"]
[]
[]
["Figures in million",null,"Share capital","Other reserves","Retained earnings","Total"]
[]
[]
["Balance - 30 June 2011",null,3491,94,135,3720]
["Issue of shares",null,3,0,0,3]
["Share-based payments",null,0,6,0,6]
["Net profit for the period",null,0,0,188,188]
["Total comprehensive income for the period",null,0,140,0,140]
["Dividends paid",null,0,0,-32,-32]
[]
[]
["Balance - 31 December 2011",null,3494,240,291,4025]
[]
[]
["Balance - 30 June 2010",null,4272,39,104,4415]
["Issue of shares",null,3,0,0,3]
["Share-based payments",null,0,9,0,9]
["Net profit for the period",null,0,0,64,64]
["Total comprehensive income for the period",null,0,-8,0,-8]
["Dividends paid",null,0,0,-32,-32]
[]
[]
["Balance - 31 December 2010",null,4275,40,136,4451]
[]
[]
["The currency conversion closing rates for the period ended 31 December 2011: US$1 = R8.11 (December 2010: US$1 = R6.62)."]

{"sheet":"Publish - Cash flow (US$)","index":11,"n_rows":56,"n_cols":11,"rows_kept":56,"cut":false,"hidden":false,"merged":[[39,0,39,1],[32,0,32,1],[42,0,42,1],[49,0,49,1],[54,0,54,10],[4,3,4,5],[4,7,4,8],[52,0,53,10],[22,0,22,1],[23,0,23,1],[24,0,24,1],[26,0,26,1],[35,0,35,1],[45,0,45,1],[46,0,46,1],[29,0,29,1],[18,0,18,1],[11,0,11,1]]}
["CONDENSED CONSOLIDATED CASH FLOW STATEMENTS (US$)"]
["(Convenience translation)"]
[]
[]
[null,null,null,"Quarter ended",null,null,null,"Six months ended",null,null,"Year ended"]
[null,null,null,"31 December","30 September","31 December",null,"31 December","31 December",null,"30 June"]
[null,null,null,2011,2011,2010,null,"2011",2010,null,"2011"]
["Figures in million",null,null,"(Unaudited)","(Unaudited)","(Unaudited)",null,"(Unaudited)","(Unaudited)",null,"(Audited)"]
[]
[]
[]
["Cash flow from operating activities"]
["Cash generated by operations",null,null,193,153,65,null,349,163,null,346]
["Interest and dividends received",null,null,2,2,6,null,4,7,null,20]
["Interest paid",null,null,-4,-6,-5,null,-10,-9,null,-19]
["Income and mining taxes paid",null,null,-18,0,-4,null,-20,-5,null,-7]
[]
[]
["Cash generated by operating activities",null,null,173,149,62,null,323,156,null,340]
[]
[]
["Cash flow from investing activities"]
["Decrease in restricted cash",null,null,0,0,13,null,0,17,null,17]
["Proceeds on disposal of investment in subsidiary",null,null,0,0,0,null,0,30,null,30]
["Pre-payment for Evander 6 and Twistdraai transaction",null,null,0,0,0,null,0,0,null,15]
["Other investing activities",null,null,0,0,-1,null,0,3,null,2]
["Net additions to property, plant and equipment",null,null,-96,-94,-123,null,-190,-225,null,-445]
[]
[]
["Cash utilised by investing activities",null,null,-96,-94,-111,null,-190,-175,null,-381]
[]
[]
["Cash flow from financing activities"]
["Borrowings raised",null,null,0,112,76,null,105,74,null,134]
["Borrowings repaid",null,null,-89,-49,-16,null,-141,-16,null,-81]
["Ordinary shares issued - net of expenses",null,null,1,1,1,null,3,2,null,6]
["Dividends paid",null,null,0,-36,0,null,-34,-30,null,-30]
[]
[]
["Cash (utilised)/generated by financing activities",null,null,-88,28,61,null,-67,30,null,29]
[]
[]
["Foreign currency translation adjustments",null,null,-4,-21,4,null,20,15,null,13]
[]
[]
["Net (decrease)/increase in cash and cash equivalents",null,null,-15,62,16,null,47,26,null,1]
["Cash and cash equivalents - beginning of period",null,null,164,102,111,null,102,101,null,101]
[]
[]
["Cash and cash equivalents - end of period",null,null,149,164,127,null,149,127,null,102]
[]
[]
["Operating activities translated at average rates for the quarter ended: December 2011: US$1 = R8.10 (September 2011: US$1 = R7.14, December 2010: US$1 = 6.88). Six months ended: December 2011: US$1 = R7.61 (December 2010: US$1 = R 7.09)."]
[]
["Closing balance translated at closing rates of: December 2011: US$1 = R8.11 (September 2011: US$1 = R8.08, December 2010: US$ = R6.62)."]
["The cash flow statement for the year ended 30 June 2011 has been extracted from the 2011 Annual Report."]

{"sheet":"Segment Report (US$)","index":12,"n_rows":925,"n_cols":13,"rows_kept":925,"cut":false,"hidden":false,"merged":[[7,3,7,4],[7,5,7,6],[7,7,7,8],[7,9,7,10],[7,11,7,12],[6,11,6,12],[9,1,9,2],[9,3,9,4],[9,5,9,6],[9,7,9,8],[9,9,9,10],[9,11,9,12],[6,1,6,2],[6,3,6,4],[6,5,6,6],[6,7,6,8],[6,9,6,10],[7,1,7,2]]}
["Notes to the group financial statements"]
["for the six months ended 31 December 2011"]
[]
[]
["SEGMENT REPORT (US dollar) Unaudited"]
[]
[null,"Revenue",null,"Production cost",null,"Production profit",null,"Capital expenditure",null,"Ounces produced",null,"Tons milled"]
[null,"31 December",null,"31 December",null,"31 December",null,"31 December",null,"31 December",null,"31 December"]
[null,2011,2010,2011,2010,2011,2010,2011,2010,2011,2010,2011,2010]
[null,"US$ million",null,"US$ million",null,"US$ million",null,"US$ million",null,"oz",null,"t'000"]
[]
[]
["CONTINUING OPERATIONS"]
["South Africa"]
["Underground"]
["Bambanani",42,71,48,59,-6,12,19,22,26524,55171,146,257]
["Doornkop",98,51,59,42,39,9,18,22,56682,38067,561,343]
["Evander",90,44,46,45,44,-1,12,16,54496,34369,265,307]
["Joel",80,24,39,28,41,-4,4,6,45590,17875,327,185]
["Kusasalethu",144,109,87,91,57,18,28,27,90729,82274,647,548]
["Masimong",94,103,58,56,36,47,16,13,54335,77611,512,509]
["Phakisa",66,38,51,31,15,7,20,27,38066,28357,264,213]
["Target",138,72,83,50,55,22,22,36,80281,63723,631,442]
["Tshepong",153,141,83,82,70,59,18,19,88028,106611,653,753]
["Virginia",45,56,33,49,12,7,4,7,25785,42632,211,404]
[]
["Surface"]
["All other surface operations ",104,82,64,61,40,21,6,9,60540,65073,5179,5874]
[]
[]
["Total South Africa",{"$f":"SUM(B16:B28)","v":1054},{"$f":"SUM(C16:C28)","v":791},651,594,403,197,167,204,621056,611763,9396,9835]
[]
[]
["International"]
["Papua New Guinea",95,65,55,48,40,17,12,20,51698.325600000004,48162,981.32074699999987,940]
["Other",0,0,0,0,0,0,15,0,0,0,0,0]
[]
[]
["Total international",{"$f":"B35","v":95},65,55,48,40,17,{"$f":"H35+H36","v":27},{"$f":"I35","v":20},{"$f":"J35","v":51698.325600000004},{"$f":"K35","v":48162},{"$f":"L35","v":981.32074699999987},{"$f":"M35","v":940}]
[]
[]
["Total continuing operations",{"$f":"+B39+B31","v":1149},856,706,642,443,214,194,224,672754.32559999998,659925,10377.320747,10775]
[]
[]
[]
[]
[]
[]
[]
[]
[]
[]
[]
[]
[]
[]
[]
[]
[]
[]
[]
[]
[]
[]
[]
[]
[]
[]
[]
[]
[]
[]
[]
[]
[]
[]
[]
[]
[]
[]
[]
[]
[]
[]
[]
[]
[]
[]
[]
[]
[]
[]
[]
[]
[]
[]
[]
[]
[]
[]
[]
[]
[]
[]
[]
[]
[]
[]
[]
[]
[]
[]
[]
[]
[]
[]
[]
[]
[]
[]
[]
[]
[]
[]
[]
[]
[]
[]
[]
[]
[]
[]
[]
[]
[]
[]
[]
[]
[]
[]
[]
[]
[]
[]
[]
[]
[]
[]
[]
[]
[]
[]
[]
[]
[]
[]
[]
[]
[]
[]
[]
[]
[]
[]
[]
[]
[]
[]
[]
[]
[]
[]
[]
[]
[]
[]
[]
[]
[]
[]
[]
[]
[]
[]
[]
[]
[]
[]
[]
[]
[]
[]
[]
[]
[]
[]
[]
[]
[]
[]
[]
[]
[]
[]
[]
[]
[]
[]
[]
[]
[]
[]
[]
[]
[]
[]
[]
[]
[]
[]
[]
[]
[]
[]
[]
[]
[]
[]
[]
[]
[]
[]
[]
[]
[]
[]
[]
[]
[]
[]
[]
[]
[]
[]
[]
[]
[]
[]
[]
[]
[]
[]
[]
[]
[]
[]
[]
[]
[]
[]
[]
[]
[]
[]
[]
[]
[]
[]
[]
[]
[]
[]
[]
[]
[]
[]
[]
[]
[]
[]
[]
[]
[]
[]
[]
[]
[]
[]
[]
[]
[]
[]
[]
[]
[]
[]
[]
[]
[]
[]
[]
[]
[]
[]
[]
[]
[]
[]
[]
[]
[]
[]
[]
[]
[]
[]
[]
[]
[]
[]
[]
[]
[]
[]
[]
[]
[]
[]
[]
[]
[]
[]
[]
[]
[]
[]
[]
[]
[]
[]
[]
[]
[]
[]
[]
[]
[]
[]
[]
[]
[]
[]
[]
[]
[]
[]
[]
[]
[]
[]
[]
[]
[]
[]
[]
[]
[]
[]
[]
[]
[]
[]
[]
[]
[]
[]
[]
[]
[]
[]
[]
[]
[]
[]
[]
[]
[]
[]
[]
[]
[]
[]
[]
[]
[]
[]
[]
[]
[]
[]
[]
[]
[]
[]
[]
[]
[]
[]
[]
[]
[]
[]
[]
[]
[]
[]
[]
[]
[]
[]
[]
[]
[]
[]
[]
[]
[]
[]
[]
[]
[]
[]
[]
[]
[]
[]
[]
[]
[]
[]
[]
[]
[]
[]
[]
[]
[]
[]
[]
[]
[]
[]
[]
[]
[]
[]
[]
[]
[]
[]
[]
[]
[]
[]
[]
[]
[]
[]
[]
[]
[]
[]
[]
[]
[]
[]
[]
[]
[]
[]
[]
[]
[]
[]
[]
[]
[]
[]
[]
[]
[]
[]
[]
[]
[]
[]
[]
[]
[]
[]
[]
[]
[]
[]
[]
[]
[]
[]
[]
[]
[]
[]
[]
[]
[]
[]
[]
[]
[]
[]
[]
[]
[]
[]
[]
[]
[]
[]
[]
[]
[]
[]
[]
[]
[]
[]
[]
[]
[]
[]
[]
[]
[]
[]
[]
[]
[]
[]
[]
[]
[]
[]
[]
[]
[]
[]
[]
[]
[]
[]
[]
[]
[]
[]
[]
[]
[]
[]
[]
[]
[]
[]
[]
[]
[]
[]
[]
[]
[]
[]
[]
[]
[]
[]
[]
[]
[]
[]
[]
[]
[]
[]
[]
[]
[]
[]
[]
[]
[]
[]
[]
[]
[]
[]
[]
[]
[]
[]
[]
[]
[]
[]
[]
[]
[]
[]
[]
[]
[]
[]
[]
[]
[]
[]
[]
[]
[]
[]
[]
[]
[]
[]
[]
[]
[]
[]
[]
[]
[]
[]
[]
[]
[]
[]
[]
[]
[]
[]
[]
[]
[]
[]
[]
[]
[]
[]
[]
[]
[]
[]
[]
[]
[]
[]
[]
[]
[]
[]
[]
[]
[]
[]
[]
[]
[]
[]
[]
[]
[]
[]
[]
[]
[]
[]
[]
[]
[]
[]
[]
[]
[]
[]
[]
[]
[]
[]
[]
[]
[]
[]
[]
[]
[]
[]
[]
[]
[]
[]
[]
[]
[]
[]
[]
[]
[]
[]
[]
[]
[]
[]
[]
[]
[]
[]
[]
[]
[]
[]
[]
[]
[]
[]
[]
[]
[]
[]
[]
[]
[]
[]
[]
[]
[]
[]
[]
[]
[]
[]
[]
[]
[]
[]
[]
[]
[]
[]
[]
[]
[]
[]
[]
[]
[]
[]
[]
[]
[]
[]
[]
[]
[]
[]
[]
[]
[]
[]
[]
[]
[]
[]
[]
[]
[]
[]
[]
[]
[]
[]
[]
[]
[]
[]
[]
[]
[]
[]
[]
[]
[]
[]
[]
[]
[]
[]
[]
[]
[]
[]
[]
[]
[]
[]
[]
[]
[]
[]
[]
[]
[]
[]
[]
[]
[]
[]
[]
[]
[]
[]
[]
[]
[]
[]
[]
[]
[]
[]
[]
[]
[]
[]
[]
[]
[]
[]
[]
[]
[]
[]
[]
[]
[]
[]
[]
[]
[]
[]
[]
[]
[]
[]
[]
[]
[]
[]
[]
[]
[]
[]
[]
[]
[]
[]
[]
[]
[]
[]
[]
[]
[]
[]
[]
[]
[]
[]
[]
[]
[]
[]
[]
[]
[]
[]
[]
[]
[]
[]
[]
[]
[]
[]
[]
[]
[]
[]
[]
[]
[]
[]
[]
[]
[]
[]
[]
[]
[]
[null,null,null,null,"A 10% decrease in the gold price at the reporting date would have resulted in the following additional impairments being recognised in the 2010 and 2009 financial year. This analysis assumes that all other variables remain constant.  The analysis is performed on the same basis for 2009."]
[]
[]
[]
[]
[]
[]
[]
[null,null,null,null,null,null,null,null,null,null,"President Steyn 2"]
[null,null,null,null,null,null,null,null,null,null,"Evander 8"]